fUSD/lending_fUSD_20250301
["ID","MTS","AMOUNT","RATE_DAILY","PERIOD"]
[354947035,1740838245979,-506.74,0.00027945,2]
[354947038,1740838245993,-401.04826246,0.00027945,2]
[354947040,1740838246007,-720.95,0.00027945,2]
[354947043,1740838246020,-630.29,0.00027945,2]
[354947045,1740838246035,-747.06,0.00027945,2]
[354947048,1740838246049,-500.0,0.00027945,2]
[354947050,1740838246063,-881.64,0.00027945,2]
[354947053,1740838246077,-626.1,0.00027945,2]
[354947055,1740838246091,-500.0,0.00027945,2]
[354947057,1740838246104,-600.85,0.00027945,2]
[354947060,1740838246117,-527.84,0.00027945,2]
[354947062,1740838246131,-810.84,0.00027945,2]
[354947065,1740838246145,-645.68,0.00027945,2]
[354947067,1740838246159,-603.09120496,0.00027945,2]
[354947069,1740838246173,-500.0,0.00027945,2]
[354947072,1740838246188,-721.69,0.00027945,2]
[354947074,1740838246201,-1383.59,0.00027945,2]
[354947078,1740838246216,-500.0,0.00027945,2]
[354947081,1740838246231,-500.0,0.00027945,2]
[354947084,1740838246246,-644.31,0.00027945,2]
[354947086,1740838246261,-806.56,0.00027945,2]
[354947089,1740838246276,-527.05,0.00027945,2]
[354947091,1740838246290,-606.14,0.00027945,2]
[354947094,1740838246304,-300.0,0.00027945,2]
[354947096,1740838246319,-538.87,0.00027945,2]
[354947099,1740838246333,-500.0,0.00027945,2]
[354947101,1740838246347,-1045.24,0.00027945,2]
[354947103,1740838246361,-500.0,0.00027945,2]
[354947106,1740838246375,-980.17,0.00027945,2]
[354947108,1740838246389,-999.63,0.00027945,2]
[354947113,1740838246403,-500.0,0.00027945,2]
[354947115,1740838246417,-500.0,0.00027945,2]
[354947118,1740838246431,-502.21,0.00027945,2]
[354947120,1740838246447,-695.81,0.00027945,2]
[354947123,1740838246460,-817.96,0.00027945,2]
[354947125,1740838246474,-500.0,0.00027945,2]
[354947128,1740838246489,-865.63,0.00027945,2]
[354947130,1740838246502,-500.0,0.00027945,2]
[354947133,1740838246516,-631.18,0.00027945,2]
[354947135,1740838246529,-724.87,0.00027945,2]
[354947138,1740838246544,-791.85,0.00027945,2]
[354947140,1740838246557,-928.45,0.00027945,2]
[354947142,1740838246571,-1117.72,0.00027945,2]
[354947145,1740838246585,-331.7928726,0.00027945,2]
[354947147,1740838246599,-992.89,0.00027945,2]
[354947150,1740838246615,-500.0,0.00027945,2]
[354947152,1740838246629,-209.50488252,0.00027945,2]
[354947155,1740838246643,-755.18,0.00027945,2]
[354947157,1740838246657,-1111.64,0.00027945,2]
[354947159,1740838246670,-726.19,0.00027945,2]
[354947162,1740838246684,-500.0,0.00027945,2]
[354947164,1740838246697,-809.63,0.00027945,2]
[354947167,1740838246711,-748.36,0.00027945,2]
[354947169,1740838246725,-500.0,0.00027945,2]
[354947172,1740838246740,-574.87,0.00027945,2]
[354947174,1740838246753,-542.82,0.00027945,2]
[354947176,1740838246768,-536.48,0.00027945,2]
[354947179,1740838246782,-500.0,0.00027945,2]
[354947181,1740838246796,-175.79465955,0.00027945,2]
[354947184,1740838246810,-500.0,0.00027945,2]
[354947186,1740838246823,-500.0,0.00027945,2]
[354947189,1740838246837,-662.69,0.00027945,2]
[354947191,1740838246850,-889.39,0.00027945,2]
[354947193,1740838246864,-500.0,0.00027945,2]
[354947196,1740838246878,-725.05,0.00027945,2]
[354947198,1740838246892,-517.46,0.00027945,2]
[354947201,1740838246906,-1179.59,0.00027945,2]
[354947203,1740838246920,-500.0,0.00027945,2]
[354947206,1740838246935,-965.8,0.00027945,2]
[354947208,1740838246948,-644.51,0.00027945,2]
[354947209,1740838246963,-512.48,0.00027945,2]
[354947211,1740838246976,-1279.58,0.00027945,2]
[354947213,1740838246986,-872.58,0.00027945,2]
[354947215,1740838246996,-1347.37,0.00027945,2]
[354947217,1740838247006,-174.3785155,0.00027945,2]
[354947219,1740838247016,-588.99,0.00027945,2]
[354947221,1740838247025,-500.0,0.00027945,2]
[354947222,1740838247035,-527.7,0.00027945,2]
[354947223,1740838247045,-741.03,0.00027945,2]
[354947224,1740838247055,-609.76,0.00027945,2]
[354947225,1740838247065,-291.22543504,0.00027945,2]
[354947226,1740838247075,-2597.484083,0.00027945,2]
[354947227,1740838247085,-500.0,0.00027945,2]
[354947228,1740838247095,-650.37,0.00027945,2]
[354947229,1740838247105,-541.66,0.00027945,2]
[354947230,1740838247114,-809.22,0.00027945,2]
[354947231,1740838247124,-908.98,0.00027945,2]
[354947232,1740838247134,-500.0,0.00027945,2]
[354947234,1740838247145,-150.369306,0.00027945,2]
[354947236,1740838247156,-500.0,0.00027945,2]
[354947238,1740838247166,-500.0,0.00027945,2]
[354947240,1740838247176,-788.13,0.00027945,2]
[354947242,1740838247186,-581.55,0.00027945,2]
[354947244,1740838247195,-777.72,0.00027945,2]
[354947246,1740838247206,-565.86,0.00027945,2]
[354947248,1740838247216,-763.99,0.00027945,2]
[354947250,1740838247228,-500.0,0.00027945,2]
[354947252,1740838247238,-500.0,0.00027945,2]
[354947254,1740838247249,-500.0,0.00027945,2]
[354947256,1740838247259,-629.32,0.00027945,2]
[354947258,1740838247269,-631.05,0.00027945,2]
[354947261,1740838247279,-1130.27,0.00027945,2]
[354947263,1740838247289,-500.0,0.00027945,2]
[354947265,1740838247299,-500.0,0.00027945,2]
[354947267,1740838247308,-500.0,0.00027945,2]
[354947269,1740838247318,-522.5,0.00027945,2]
[354947271,1740838247329,-2003.353535,0.00027945,2]
[354947272,1740838247338,-500.0,0.00027945,2]
[354947315,1740838247743,-1166.97,0.00027945,2]
[354947320,1740838247782,-500.0,0.00027945,2]
[354947323,1740838247806,-514.42,0.00027945,2]
[354947325,1740838247817,-773.7,0.00027945,2]
[354947328,1740838247827,-628.3,0.00027945,2]
[354947329,1740838247837,-624.02,0.00027945,2]
[354947332,1740838247847,-881.61,0.00027945,2]
[354947334,1740838247856,-574.36,0.00027945,2]
[354947336,1740838247867,-1345.32,0.00027945,2]
[354947338,1740838247876,-699.03,0.00027945,2]
[354947340,1740838247886,-832.36,0.00027945,2]
[354947342,1740838247896,-500.0,0.00027945,2]
[354947344,1740838247905,-599.35,0.00027945,2]
[354947346,1740838247914,-967.96,0.00027945,2]
[354947348,1740838247924,-500.0,0.00027945,2]
[354947350,1740838247934,-153.30003628,0.00027945,2]
[354947352,1740838247944,-841.05,0.00027945,2]
[354947354,1740838247954,-500.0,0.00027945,2]
[354947356,1740838247963,-1362.66,0.00027945,2]
[354947358,1740838247974,-582.48,0.00027945,2]
[354947360,1740838247984,-500.0,0.00027945,2]
[354947362,1740838247994,-500.0,0.00027945,2]
[354947364,1740838248003,-786.87,0.00027945,2]
[354947366,1740838248013,-1070.62,0.00027945,2]
[354947368,1740838248023,-802.62,0.00027945,2]
[354947370,1740838248033,-1362.76,0.00027945,2]
[354947372,1740838248043,-570.47,0.00027945,2]
[354947374,1740838248054,-668.47,0.00027945,2]
[354947376,1740838248064,-500.0,0.00027945,2]
[354947378,1740838248074,-698.6,0.00027945,2]
[354947380,1740838248084,-3115.62,0.00027945,2]
[354947382,1740838248094,-500.0,0.00027945,2]
[354947384,1740838248103,-500.0,0.00027945,2]
[354947386,1740838248114,-924.56,0.00027945,2]
[354947388,1740838248124,-728.35,0.00027945,2]
[354947390,1740838248135,-500.0,0.00027945,2]
[354947392,1740838248144,-612.07,0.00027945,2]
[354947394,1740838248154,-1158.6,0.00027945,2]
[354947396,1740838248163,-852.98,0.00027945,2]
[354947398,1740838248173,-652.51,0.00027945,2]
[354947400,1740838248183,-930.37,0.00027945,2]
[354947402,1740838248193,-551.31,0.00027945,2]
[354947404,1740838248203,-572.88,0.00027945,2]
[354947406,1740838248213,-773.23106261,0.00027945,2]
[354947417,1740838248308,-187.43893739,0.00027945,2]
[354947419,1740838248318,-1009.65,0.00027945,2]
[354947421,1740838248328,-670.64,0.00027945,2]
[354947423,1740838248338,-621.8,0.00027945,2]
[354947425,1740838248347,-500.0,0.00027945,2]
[354947427,1740838248357,-500.0,0.00027945,2]
[354947429,1740838248367,-903.51,0.00027945,2]
[354947431,1740838248377,-694.15,0.00027945,2]
[354947433,1740838248387,-500.0,0.00027945,2]
[354947435,1740838248396,-1091.72,0.00027945,2]
[354947437,1740838248406,-534.97,0.00027945,2]
[354947439,1740838248416,-1180.54,0.00027945,2]
[354947441,1740838248425,-500.0,0.00027945,2]
[354947443,1740838248434,-644.85,0.00027945,2]
[354947445,1740838248444,-559.09,0.00027945,2]
[354947447,1740838248453,-562.59,0.00027945,2]
[354947449,1740838248462,-792.67,0.00027945,2]
[354947451,1740838248472,-815.11,0.00027945,2]
[354947453,1740838248481,-1082.79,0.00027945,2]
[354947455,1740838248491,-1055.02,0.00027945,2]
[354947457,1740838248500,-500.0,0.00027945,2]
[354947459,1740838248510,-711.86,0.00027945,2]
[354947461,1740838248520,-500.0,0.00027945,2]
[354947463,1740838248530,-500.0,0.00027945,2]
[354947465,1740838248539,-500.0,0.00027945,2]
[354947467,1740838248548,-1666.76,0.00027945,2]
[354947469,1740838248558,-500.0,0.00027945,2]
[354947471,1740838248567,-765.83,0.00027945,2]
[354947473,1740838248576,-1507.32,0.00027945,2]
[354947475,1740838248586,-500.0,0.00027945,2]
[354947477,1740838248597,-561.84,0.00027945,2]
[354947479,1740838248610,-579.06,0.00027945,2]
[354947481,1740838248619,-859.38,0.00027945,2]
[354947483,1740838248629,-805.52,0.00027945,2]
[354947485,1740838248640,-602.98,0.00027945,2]
[354947487,1740838248649,-500.0,0.00027945,2]
[354947489,1740838248659,-500.0,0.00027945,2]
[354947491,1740838248668,-960.03,0.00027945,2]
[354947493,1740838248680,-500.0,0.00027945,2]
[354947495,1740838248690,-973.73,0.00027945,2]
[354947497,1740838248699,-924.74,0.00027945,2]
[354947499,1740838248709,-3492.81,0.00027945,2]
[354947501,1740838248719,-1373.15,0.00027945,2]
[354947503,1740838248729,-1073.12,0.00027945,2]
[354947505,1740838248739,-1135.88,0.00027945,2]
[354947507,1740838248750,-500.0,0.00027945,2]
[354947509,1740838248759,-500.0,0.00027945,2]
[354947511,1740838248769,-1027.26,0.00027945,2]
[354947513,1740838248779,-500.0,0.00027945,2]
[354947515,1740838248788,-1260.8,0.00027945,2]
[354947517,1740838248798,-558.67,0.00027945,2]
[354947519,1740838248808,-959.11,0.00027945,2]
[354947521,1740838248818,-873.56,0.00027945,2]
[354947523,1740838248828,-573.74,0.00027945,2]
[354947525,1740838248838,-739.38,0.00027945,2]
[354947527,1740838248847,-752.83,0.00027945,2]
[354947529,1740838248857,-1111.14,0.00027945,2]
[354947531,1740838248867,-579.52,0.00027945,2]
[354947533,1740838248877,-1140.24,0.00027945,2]
[354947535,1740838248887,-965.19,0.00027945,2]
[354947537,1740838248897,-500.0,0.00027945,2]
[354947539,1740838248907,-1461.37,0.00027945,2]
[354947541,1740838248916,-6175.24,0.00027945,2]
[354947543,1740838248926,-365.62662038,0.00027945,2]
[354947545,1740838248936,-1702.96,0.00027945,2]
[354947547,1740838248946,-500.0,0.00027945,2]
[354947549,1740838248955,-1607.75,0.00027945,2]
[354947551,1740838248965,-692.11,0.00027945,2]
[354947553,1740838248976,-1403.06,0.00027945,2]
[354947555,1740838248986,-1154.81,0.00027945,2]
[354947557,1740838248996,-500.0,0.00027945,2]
[354947559,1740838249006,-1986.25,0.00027945,2]
[354947561,1740838249015,-1523.59,0.00027945,2]
[354947563,1740838249026,-1221.88,0.00027945,2]
[354947565,1740838249035,-219.21027879,0.00027945,2]
[354947567,1740838249045,-866.18,0.00027945,2]
[354947569,1740838249055,-614.83,0.00027945,2]
[354947571,1740838249064,-667.76,0.00027945,2]
[354947573,1740838249074,-500.0,0.00027945,2]
[354947575,1740838249084,-884.97,0.00027945,2]
[354947577,1740838249094,-588.32,0.00027945,2]
[354947579,1740838249107,-500.0,0.00027945,2]
[354947581,1740838249116,-541.9,0.00027945,2]
[354947583,1740838249126,-500.0,0.00027945,2]
[354947585,1740838249135,-661.2,0.00027945,2]
[354947587,1740838249145,-3143.31,0.00027945,2]
[354947589,1740838249154,-525.57,0.00027945,2]
[354947591,1740838249164,-471.28465756,0.00027945,2]
[354947593,1740838249173,-619.24,0.00027945,2]
[354947595,1740838249182,-282.01179247,0.00027945,2]
[354947597,1740838249192,-1912.72,0.00027945,2]
[354947598,1740838249201,-2052.43,0.00027945,2]
[354947600,1740838249211,-1327.53,0.00027945,2]
[354947602,1740838249222,-1395.29,0.00027945,2]
[354947604,1740838249232,-968.57,0.00027945,2]
[354947606,1740838249242,-1870.47,0.00027945,2]
[354947608,1740838249251,-630.73,0.00027945,2]
[354947610,1740838249261,-2366.34,0.00027945,2]
[354947612,1740838249270,-696.42,0.00027945,2]
[354947614,1740838249280,-1981.8,0.00027945,2]
[354947616,1740838249290,-1402.72,0.00027945,2]
[354947618,1740838249300,-604.62,0.00027945,2]
[354947620,1740838249310,-500.0,0.00027945,2]
[354947622,1740838249320,-1312.79,0.00027945,2]
[354947624,1740838249329,-1615.21,0.00027945,2]
[354947626,1740838249339,-500.0,0.00027945,2]
[354947628,1740838249349,-1855.95,0.00027945,2]
[354947630,1740838249358,-2392.11,0.00027945,2]
[354947632,1740838249368,-1459.07,0.00027945,2]
[354947634,1740838249377,-1936.07,0.00027945,2]
[354947636,1740838249388,-244.87619739,0.00027945,2]
[354947638,1740838249398,-1089.86,0.00027945,2]
[354947640,1740838249408,-943.02,0.00027945,2]
[354947642,1740838249418,-1188.88,0.00027945,2]
[354947644,1740838249427,-1424.02,0.00027945,2]
[354947646,1740838249437,-712.72,0.00027945,2]
[354947648,1740838249446,-500.0,0.00027945,2]
[354947650,1740838249456,-500.0,0.00027945,120]
[354947652,1740838249465,-626.67,0.00027945,2]
[354947654,1740838249475,-972.22,0.00027945,2]
[354947656,1740838249484,-2132.45,0.00027945,2]
[354947658,1740838249493,-2017.47,0.00027945,2]
[354947660,1740838249502,-1048.48,0.00027945,2]
[354947662,1740838249512,-977.03,0.00027945,2]
[354947664,1740838249521,-645.41,0.00027945,2]
[354947666,1740838249530,-500.0,0.00027945,2]
[354947668,1740838249539,-1094.07,0.00027945,2]
[354947670,1740838249549,-1938.02,0.00027945,2]
[354947672,1740838249558,-689.7,0.00027945,2]
[354947674,1740838249568,-1765.35,0.00027945,2]
[354947676,1740838249578,-500.0,0.00027945,2]
[354947678,1740838249587,-871.41,0.00027945,2]
[354947680,1740838249598,-1081.87,0.00027945,2]
[354947682,1740838249611,-500.0,0.00027945,2]
[354947684,1740838249620,-582.15,0.00027945,2]
[354947686,1740838249630,-508.68,0.00027945,2]
[354947688,1740838249640,-4101.02,0.00027945,2]
[354947690,1740838249650,-2749.18,0.00027945,2]
[354947692,1740838249660,-500.0,0.00027945,2]
[354947694,1740838249670,-1525.2,0.00027945,2]
[354947695,1740838249681,-1290.63,0.00027945,2]
[354947697,1740838249690,-696.5,0.00027945,2]
[354947699,1740838249700,-1181.46,0.00027945,2]
[354947701,1740838249709,-500.0,0.00027945,2]
[354947703,1740838249719,-500.0,0.00027945,2]
[354947705,1740838249729,-1012.03,0.00027945,2]
[354947707,1740838249739,-643.48,0.00027945,2]
[354947709,1740838249748,-1992.61,0.00027945,2]
[354947711,1740838249758,-726.69,0.00027945,2]
[354947713,1740838249767,-500.0,0.00027945,2]
[354947715,1740838249781,-529.82,0.00027945,2]
[354947717,1740838249791,-323.1177933,0.00027945,2]
[354947719,1740838249800,-1071.46,0.00027945,2]
[354947721,1740838249810,-531.63,0.00027945,2]
[354947723,1740838249819,-1023.82,0.00027945,2]
[354947725,1740838249828,-1290.69,0.00027945,2]
[354947727,1740838249838,-1050.69,0.00027945,2]
[354947729,1740838249847,-1267.77,0.00027945,2]
[354947731,1740838249857,-834.44,0.00027945,2]
[354947733,1740838249871,-1964.82,0.00027945,2]
[354947735,1740838249880,-746.87,0.00027945,2]
[354947737,1740838249890,-1242.94,0.00027945,2]
[354947739,1740838249899,-567.83,0.00027945,2]
[354947741,1740838249909,-1369.29,0.00027945,2]
[354947743,1740838249918,-1350.19,0.00027945,2]
[354947745,1740838249927,-16334.04,0.00027945,2]
[354947747,1740838249937,-504.62,0.00027945,2]
[354947749,1740838249946,-573.82,0.00027945,2]
[354947751,1740838249955,-801.54,0.00027945,2]
[354947753,1740838249965,-500.0,0.00027945,2]
[354947755,1740838249974,-1222.19,0.00027945,2]
[354947757,1740838249984,-680.17,0.00027945,2]
[354947759,1740838249994,-512.9,0.00027945,2]
[354947761,1740838250004,-929.58,0.00027945,2]
[354947763,1740838250013,-518.1,0.00027945,2]
[354947765,1740838250023,-1523.64,0.00027945,2]
[354947767,1740838250032,-1263.69,0.00027945,2]
[354947769,1740838250042,-2167.42,0.00027945,2]
[354947771,1740838250052,-500.0,0.00027945,2]
[354947773,1740838250061,-581.67,0.00027945,2]
[354947775,1740838250071,-500.0,0.00027945,2]
[354947777,1740838250081,-520.37,0.00027945,2]
[354947779,1740838250091,-5512.69,0.00027945,2]
[354947781,1740838250101,-776.45,0.00027945,2]
[354947783,1740838250111,-571.84,0.00027945,2]
[354947785,1740838250121,-1482.91,0.00027945,2]
[354947787,1740838250131,-1493.42,0.00027945,2]
[354947789,1740838250142,-805.63,0.00027945,2]
[354947791,1740838250152,-500.0,0.00027945,2]
[354947793,1740838250162,-543.09,0.00027945,2]
[354947795,1740838250171,-500.0,0.00027945,2]
[354947797,1740838250182,-990.72,0.00027945,2]
[354947800,1740838250192,-538.78,0.00027945,2]
[354947801,1740838250201,-1422.04,0.00027945,2]
[354947804,1740838250211,-1804.4,0.00027945,2]
[354947806,1740838250221,-500.0,0.00027945,2]
[354947808,1740838250231,-1537.5,0.00027945,2]
[354947810,1740838250241,-500.0,0.00027945,2]
[354947812,1740838250251,-506.37,0.00027945,2]
[354947814,1740838250261,-699.0,0.00027957,5]
[354947816,1740838250271,-500.0,0.00028,30]
[354947818,1740838250281,-500.0,0.00028,30]
[354947820,1740838250291,-500.0,0.00028,30]
[354947822,1740838250300,-500.0,0.00028,30]
[354947824,1740838250310,-454.73266836,0.00028027,2]
[354947826,1740838250320,-2576.15983649,0.00028028,2]
[354947828,1740838250330,-679.89,0.00028095,2]
[354947830,1740838250340,-164.85897035,0.00028119,2]
[354947832,1740838250351,-454.73266836,0.0002821,2]
[354947834,1740838250360,-2576.15983649,0.0002821,2]
[354947836,1740838250370,-500.0,0.00028218,2]
[354947838,1740838250380,-500.0,0.00028218,2]
[354947840,1740838250390,-901.47,0.00028218,2]
[354947842,1740838250400,-1124.16,0.00028218,2]
[354947844,1740838250410,-961.44,0.00028218,2]
[354947846,1740838250419,-648.23,0.00028218,2]
[354947848,1740838250429,-500.0,0.00028218,2]
[354947850,1740838250439,-647.48,0.00028218,2]
[354947852,1740838250448,-1728.55,0.00028218,2]
[354947854,1740838250458,-1385.38,0.00028218,2]
[354947856,1740838250468,-1899.5,0.00028218,2]
[354947858,1740838250478,-1661.64,0.00028218,2]
[354947860,1740838250488,-537.76,0.00028218,2]
[354947862,1740838250497,-14389.33894364,0.00028218,2]
[354947997,1740838251874,-17493.12105636,0.00028218,2]
[354948000,1740838251884,-500.0,0.00028218,2]
[354948001,1740838251894,-1956.12,0.00028218,2]
[354948003,1740838251903,-2069.22429614,0.00028218,2]
[354948006,1740838251915,-397.08635398,0.00028218,2]
[354948008,1740838251927,-2575.47934988,0.00028218,2]
[354948010,1740838251939,-5494.29239724,0.00028218,2]
[354948012,1740838251951,-3846.78455,0.00028218,2]
[354948014,1740838251963,-3197.54513101,0.00028218,2]
[354948016,1740838251975,-2000.0,0.00028218,2]
[354948019,1740838251986,-548.915419,0.00028218,2]
[354948056,1740838252358,-1143.97892178,0.00028218,2]
[354948058,1740838252370,-269.38241397,0.00028218,2]
[354948060,1740838252382,-2407.87624799,0.00028218,2]
[354948062,1740838252393,-1367.23985228,0.00028218,2]
[354948064,1740838252404,-551.275395,0.00028218,2]
[354948066,1740838252416,-451.22909375,0.00028218,2]
[354948069,1740838252427,-992.30057798,0.00028218,2]
[354948071,1740838252437,-570.95,0.00028218,2]
[354948073,1740838252446,-519.94739125,0.00028218,2]
[354948075,1740838252458,-423.1042961,0.00028218,2]
[354948077,1740838252470,-1554.81639999,0.00028218,2]
[354948079,1740838252482,-1423.69191266,0.00028218,2]
[354948081,1740838252491,-85.42260083,0.00028218,2]
[354948083,1740838252503,-414.57739917,0.00028218,2]
[354948085,1740838252513,-500.0,0.00028218,2]
[354948087,1740838252523,-4000.87574654,0.00028218,2]
[354948089,1740838252535,-910.07126,0.00028218,2]
[354948092,1740838252547,-919.45000025,0.00028218,2]
[354948158,1740838335965,500.0,0.0002302,30]
[354948159,1740838336146,500.0,0.0002302,30]
[354948160,1740838336497,500.0,0.0002302,30]
[354948189,1740839360963,-6689.48169197,0.000149,2]
[354948193,1740839361104,-6689.48169197,0.000149,2]
[354948194,1740839361279,-224.00544291,0.000149,2]
[354948196,1740839385538,-1635.79136808,0.000149,2]
[354948198,1740839385582,-349.42409271,0.000149,2]
[354948222,1740839431774,-1326.67979983,0.000149,2]
[354948223,1740839431784,-190.9262066,0.000149,2]
[354948224,1740839431793,-430.26517044,0.000149,2]
[354948225,1740839431803,-318.45310178,0.000149,2]
[354948226,1740839431813,-175.08927439,0.000149,2]
[354948227,1740839431823,-300.0,0.00014998,2]
[354948228,1740839431832,-243.91476277,0.00014999,2]
[354948229,1740839431842,-774.01673501,0.00015,2]
[354948230,1740839431880,-6170.08751892,0.00015,2]
[354948231,1740839431910,-604.302,0.00015,2]
[354948232,1740839432016,-317.35,0.00015,2]
[354948233,1740839432044,-454946.98922918,0.00015,2]
[354948238,1740839437586,-284.4,0.00015,2]
[354948241,1740839439748,-1083.04583249,0.00015,2]
[354948242,1740839439945,-705.94320015,0.00015,2]
[354948243,1740839439957,-2121.3,0.00015,2]
[354948244,1740839440291,-2538.53769526,0.00015,2]
[354948245,1740839440304,-1401.6,0.00015,2]
[354948260,1740839443019,-254664.43026358,0.00015,2]
[354948294,1740839445712,-433.23885,0.00015,2]
[354948295,1740839445732,-4542.38397394,0.00015,2]
[354948296,1740839445786,-529.05276473,0.00015,2]
[354948309,1740839635906,156.08,0.00024712,30]
[354948310,1740839909936,659.442,0.000147,2]
[354948311,1740840289073,-164.85897035,0.000149,2]
[354948312,1740840289097,-190.52462755,0.000149,2]
[354948313,1740840289122,-183.93124936,0.000149,2]
[354948314,1740840289146,-164.60464154,0.000149,2]
[354948315,1740840289170,-2806.0805112,0.000149,2]
[354948332,1740840526604,-300.0,0.00014899,2]
[354948333,1740840526656,-1626.63196844,0.000149,2]
[354948334,1740840526702,-350.37597711,0.000149,2]
[354948335,1740840526750,-4724.23743217,0.000149,2]
[354948336,1740840526832,-4505.84628928,0.000149,2]
[354948337,1740840534159,1194.59134,0.0001485,2]
[354948632,1740840632334,-272.83960107,0.000149,2]
[354948633,1740840632345,-150.0,0.00014957,2]
[354948634,1740840632355,-478.7266562,0.00014959,2]
[354948635,1740840632372,-1952.2733438,0.00014959,2]
[354948636,1740840632382,-2692.0,0.00014959,2]
[354948637,1740840632393,-161.04596453,0.00014973,2]
[354948638,1740840632403,-1410.27004809,0.00014973,2]
[354948639,1740840632414,-540.35,0.00014999,2]
[354948640,1740840632424,-1105.58519173,0.00015,2]
[354948641,1740840632436,-9080.465334,0.00015,2]
[354948642,1740840632448,-5954.55808743,0.00015,2]
[354948643,1740840632468,-11695.05042888,0.00015,2]
[354948644,1740840632480,-186466.28042715,0.00015,2]
[354948675,1740840638065,-1418.98397657,0.00015,2]
[354948676,1740840638080,-806.49612999,0.00015,2]
[354948679,1740840638343,-9993.24116842,0.00015,2]
[354948815,1740840640049,-156340.61757173,0.00015,2]
[354948816,1740840640133,-62425.02309055,0.00015,2]
[354948817,1740840640148,-1042783.80549152,0.00015,2]
[354948818,1740840640160,-1657.65390319,0.00015,2]
[354948819,1740840640207,-876.77220497,0.00015,2]
[354948820,1740840640224,-170110.11269015,0.00015,2]
[354948821,1740840640288,-169511.75793088,0.00015,2]
[354948822,1740840640303,-2097.86412202,0.00015,2]
[354948823,1740840640315,-470.81976001,0.00015,2]
[354948824,1740840640329,-281.58509351,0.00015,2]
[354948825,1740840640472,-1032.6046,0.00015,2]
[354948877,1740840642959,-2547.53,0.00015,2]
[354948879,1740840642971,-268.35229851,0.00015,2]
[354948887,1740840644502,-3918.15874295,0.00015,2]
[354948888,1740840644531,-10469.898,0.00015,2]
[354948889,1740840644542,-720.9882805,0.00015,2]
[354948919,1740840646096,-378.58838082,0.00015,2]
[354948920,1740840646117,-81233.56956521,0.00015,2]
[354948945,1740840646595,-1221.14189612,0.00015,2]
[354949035,1740840990871,-523.8,0.000149,2]
[354949036,1740841109926,527.553,0.000147,2]
[354949037,1740841157504,1009.0,0.00021,90]
[354949038,1740841191005,1000.0,0.00025,90]
[354949039,1740841271202,995.49279,0.0001485,2]
[354949041,1740841327823,153.83446646,0.00025,30]
[354949123,1740841724264,1093.28,0.00014851,2]
[354949370,1740841765063,-157.65535656,0.000149,2]
[354949371,1740841765112,-164.60464151,0.000149,2]
[354949373,1740841765167,-6889.03241519,0.000149,2]
[354949377,1740841765237,-4260.0392144,0.000149,2]
[354949608,1740841790052,-5924.32471166,0.000149,2]
[354949609,1740841790104,-20.45093502,0.000149,2]
[354949698,1740841834710,180.54,0.00024712,30]
[354949717,1740841838186,-225.10470597,0.000149,2]
[354949718,1740841838197,-1425.76313375,0.000149,2]
[354949719,1740841838207,-300.0,0.00014999,2]